fUSD/lending_fUSD_20240117
["ID","MTS","AMOUNT","RATE_DAILY","PERIOD"]
[311889687,1705489867560,-500.0,0.00022465,2]
[311889688,1705489867569,-597.44,0.00022465,2]
[311889689,1705489867578,-4561.81,0.00022465,2]
[311889690,1705489867588,-500.0,0.00022465,2]
[311889691,1705489867596,-500.0,0.00022465,2]
[311889692,1705489867606,-500.0,0.00022465,2]
[311889693,1705489867615,-3629.95,0.00022465,2]
[311889694,1705489867625,-916.35,0.00022465,2]
[311889695,1705489867634,-1883.37,0.00022465,2]
[311889696,1705489867643,-992.47,0.00022465,2]
[311889697,1705489867653,-1639.63,0.00022465,2]
[311889698,1705489867662,-1741.77,0.00022465,2]
[311889699,1705489867671,-500.0,0.00022465,2]
[311889700,1705489867680,-3959.88,0.00022465,2]
[311889701,1705489867689,-820.93,0.00022465,2]
[311889702,1705489867699,-7153.04,0.00022465,2]
[311889703,1705489867707,-500.0,0.00022465,2]
[311889704,1705489867716,-2360.61,0.00022465,2]
[311889705,1705489867725,-782.9,0.00022465,2]
[311889706,1705489867735,-806.13,0.00022465,2]
[311889707,1705489867744,-500.0,0.00022465,2]
[311889708,1705489867753,-500.0,0.00022465,2]
[311889709,1705489867763,-507.5,0.00022465,2]
[311889710,1705489867772,-1392.64,0.00022465,2]
[311889711,1705489867782,-1083.43,0.00022465,2]
[311889712,1705489867791,-500.0,0.00022465,2]
[311889713,1705489867800,-778.97,0.00022465,2]
[311889714,1705489867809,-500.0,0.00022465,2]
[311889715,1705489867818,-909.26,0.00022465,2]
[311889716,1705489867828,-979.46,0.00022465,2]
[311889717,1705489867837,-3419.57,0.00022465,2]
[311889718,1705489867846,-1060.67,0.00022465,2]
[311889719,1705489867855,-1861.48,0.00022465,2]
[311889720,1705489867864,-3566.82,0.00022465,5]
[311889721,1705489867873,-2842.76,0.00022465,2]
[311889722,1705489867883,-1210.04,0.00022465,2]
[311889723,1705489867892,-1159.83,0.00022465,2]
[311889724,1705489867901,-1906.25,0.00022465,2]
[311889725,1705489867910,-1195.39,0.00022465,2]
[311889726,1705489867919,-500.0,0.00022465,2]
[311889727,1705489867928,-5873.11,0.00022465,2]
[311889728,1705489867937,-500.0,0.00022465,2]
[311889729,1705489867946,-1059.12,0.00022465,2]
[311889730,1705489867955,-500.0,0.00022465,2]
[311889731,1705489867964,-500.0,0.00022465,2]
[311889732,1705489867974,-2140.36,0.00022465,2]
[311889733,1705489867983,-1418.66,0.00022465,2]
[311889734,1705489867992,-3914.25,0.00022465,2]
[311889735,1705489868002,-1392.42,0.00022465,2]
[311889736,1705489868011,-1713.01,0.00022465,2]
[311889737,1705489868022,-500.0,0.00022465,2]
[311889738,1705489868031,-500.0,0.00022465,2]
[311889739,1705489868042,-778.99,0.00022465,2]
[311889740,1705489868051,-2146.35,0.00022465,2]
[311889741,1705489868060,-500.0,0.00022465,2]
[311889742,1705489868069,-2303.4,0.00022465,2]
[311889743,1705489868078,-500.0,0.00022465,2]
[311889744,1705489868087,-500.0,0.00022465,2]
[311889745,1705489868096,-500.0,0.00022465,2]
[311889746,1705489868105,-2140.57,0.00022465,2]
[311889747,1705489868114,-4765.45,0.00022465,2]
[311889748,1705489868124,-1461.06,0.00022465,2]
[311889749,1705489868133,-500.0,0.00022465,2]
[311889750,1705489868143,-500.0,0.00022465,2]
[311889751,1705489868152,-1784.9,0.00022465,2]
[311889752,1705489868162,-539.85,0.00022465,2]
[311889753,1705489868171,-672.09,0.00022465,2]
[311889754,1705489868180,-1509.91,0.00022465,2]
[311889755,1705489868189,-27781.74,0.00022465,2]
[311889756,1705489868198,-534.01,0.00022465,2]
[311889757,1705489868208,-881.13,0.00022465,2]
[311889758,1705489868217,-2094.77,0.00022465,2]
[311889759,1705489868226,-1969.05,0.00022465,2]
[311889760,1705489868235,-591.22,0.00022465,2]
[311889761,1705489868244,-395.71211817,0.00022465,2]
[311889762,1705489868253,-455.94696868,0.00022465,2]
[311889763,1705489868263,-1724.25,0.00022465,2]
[311889764,1705489868273,-500.0,0.00022465,2]
[311889765,1705489868282,-2966.94,0.00022465,2]
[311889766,1705489868292,-500.0,0.00022465,2]
[311889767,1705489868301,-500.0,0.00022465,2]
[311889768,1705489868310,-500.0,0.00022465,2]
[311889769,1705489868320,-1073.7,0.00022465,2]
[311889770,1705489868330,-2716.01,0.00022465,2]
[311889771,1705489868339,-856.24,0.00022465,2]
[311889772,1705489868350,-3130.06,0.00022465,2]
[311889773,1705489868360,-5190.51,0.00022465,2]
[311889774,1705489868370,-1373.46,0.00022465,2]
[311889775,1705489868379,-1107.84,0.00022465,2]
[311889776,1705489868388,-4976.8,0.00022465,2]
[311889777,1705489868397,-2577.68,0.00022465,2]
[311889778,1705489868406,-1821.72,0.00022465,2]
[311889779,1705489868415,-500.0,0.00022465,2]
[311889780,1705489868425,-500.0,0.00022465,2]
[311889781,1705489868435,-2636.23,0.00022465,2]
[311889782,1705489868445,-500.0,0.00022465,2]
[311889783,1705489868454,-500.0,0.00022465,2]
[311889784,1705489868463,-795.84,0.00022465,2]
[311889785,1705489868472,-4042.57,0.00022465,2]
[311889786,1705489868481,-500.0,0.00022465,2]
[311889787,1705489868490,-500.0,0.00022465,2]
[311889788,1705489868500,-1181.55,0.00022465,2]
[311889789,1705489868509,-500.0,0.00022465,2]
[311889790,1705489868519,-500.0,0.00022465,2]
[311889791,1705489868528,-1662.15,0.00022465,2]
[311889792,1705489868537,-964.47,0.00022465,2]
[311889793,1705489868546,-500.0,0.00022465,2]
[311889794,1705489868555,-829.46,0.00022465,2]
[311889795,1705489868564,-1443.1,0.00022465,2]
[311889796,1705489868574,-500.0,0.00022465,2]
[311889797,1705489868583,-1683.87,0.00022465,2]
[311889798,1705489868592,-1912.07,0.00022465,2]
[311889799,1705489868602,-364.99722868,0.00022465,2]
[311889800,1705489868611,-602.95,0.00022465,2]
[311889801,1705489868621,-2975.27,0.00022465,2]
[311889802,1705489868630,-1794.36,0.00022465,2]
[311889803,1705489868639,-1938.89,0.00022465,2]
[311889804,1705489868648,-3013.34,0.00022465,2]
[311889805,1705489868658,-649.62,0.00022465,2]
[311889806,1705489868668,-8143.8,0.00022465,2]
[311889807,1705489868678,-500.0,0.00022465,2]
[311889808,1705489868687,-509.62,0.00022465,2]
[311889809,1705489868697,-1207.37,0.00022465,2]
[311889810,1705489868706,-1304.2,0.00022465,2]
[311889811,1705489868715,-500.0,0.00022465,2]
[311889812,1705489868724,-1538.7,0.00022465,2]
[311889813,1705489868733,-924.58,0.00022465,2]
[311889814,1705489868741,-2403.64,0.00022465,2]
[311889815,1705489868750,-500.0,0.00022465,2]
[311889816,1705489868759,-500.0,0.00022465,2]
[311889817,1705489868770,-852.81,0.00022465,2]
[311889818,1705489868779,-1937.17,0.00022465,2]
[311889819,1705489868789,-1023.73,0.00022465,2]
[311889820,1705489868798,-1179.93,0.00022465,2]
[311889821,1705489868807,-500.0,0.00022465,2]
[311889822,1705489868817,-2592.46,0.00022465,2]
[311889823,1705489868826,-968.29,0.00022465,2]
[311889824,1705489868835,-3413.16,0.00022465,2]
[311889825,1705489868845,-500.0,0.00022465,2]
[311889826,1705489868854,-500.0,0.00022465,2]
[311889827,1705489868863,-500.0,0.00022465,2]
[311889828,1705489868873,-1297.47,0.00022465,2]
[311889829,1705489868882,-745.84,0.00022465,2]
[311889830,1705489868891,-2908.69,0.00022465,2]
[311889831,1705489868900,-1190.11,0.00022465,2]
[311889832,1705489868909,-500.0,0.00022465,2]
[311889833,1705489868918,-815.9,0.00022465,2]
[311889834,1705489868927,-500.0,0.00022465,2]
[311889835,1705489868937,-8716.14,0.00022465,2]
[311889836,1705489868946,-601.43,0.00022465,2]
[311889837,1705489868956,-3604.29,0.00022465,5]
[311889838,1705489868965,-2488.53,0.00022465,2]
[311889839,1705489868974,-500.0,0.00022465,2]
[311889840,1705489868984,-681.48,0.00022465,2]
[311889841,1705489868993,-1866.72,0.00022465,2]
[311889842,1705489869002,-500.0,0.00022465,2]
[311889843,1705489869012,-571.22,0.00022465,2]
[311889844,1705489869022,-737.47,0.00022465,2]
[311889845,1705489869030,-1014.39,0.00022465,2]
[311889846,1705489869041,-500.0,0.00022465,2]
[311889847,1705489869050,-692.46,0.00022465,2]
[311889848,1705489869059,-150.0,0.00022466,2]
[311889849,1705489869069,-6608.47556175,0.0002249,2]
[311889850,1705489869078,-440.53439382,0.00022495,2]
[311889851,1705489869088,-595.54328524,0.00022495,2]
[311889852,1705489869097,-8452.14552393,0.000225,2]
[311889853,1705489869106,-9145.01087602,0.000225,2]
[311889854,1705489869115,-949.846,0.00022523,2]
[311889855,1705489869125,-2302.076,0.00022523,2]
[311889856,1705489869135,-458.558,0.00022523,2]
[311889857,1705489869144,-946.0,0.00022523,2]
[311889858,1705489869152,-839.0,0.00022523,2]
[311889859,1705489869162,-1232.622,0.00022523,2]
[311889860,1705489869171,-424.956,0.00022523,2]
[311889861,1705489869180,-1241.26,0.00022523,2]
[311889862,1705489869189,-426.0,0.00022523,2]
[311889863,1705489869198,-1933.0,0.00022523,2]
[311889864,1705489869207,-508.704,0.00022523,2]
[311889865,1705489869216,-277.794,0.00022523,2]
[311889866,1705489869225,-863.81,0.00022523,2]
[311889867,1705489869234,-319.864,0.00022523,2]
[311889868,1705489869244,-638.84363241,0.000226,2]
[311889869,1705489869253,-6608.47556175,0.00022614,2]
[311889870,1705489869262,-158.88,0.0002262,2]
[311889871,1705489869272,-154.79,0.00022638,2]
[311889872,1705489869281,-1215.10453592,0.00022647,2]
[311889873,1705489869290,-387.72,0.00022699,2]
[311889874,1705489869300,-4155.91586627,0.00022727,2]
[311889875,1705489869309,-307.15518639,0.00022738,2]
[311889876,1705489869318,-300.0,0.00022738,2]
[311889877,1705489869328,-3134.72,0.00022738,2]
[311889878,1705489869338,-3134.72,0.00022738,2]
[311889879,1705489869348,-3134.72,0.00022738,2]
[311889880,1705489869358,-3134.72,0.00022738,2]
[311889881,1705489869368,-3134.75875088,0.00022738,2]
[311889882,1705489869377,-6608.47556175,0.00022739,2]
[311889883,1705489869386,-1504.83,0.00022739,2]
[311889884,1705489869396,-455.3450892,0.00022739,2]
[311889885,1705489869405,-752.6,0.00022739,2]
[311889886,1705489869414,-500.0,0.00022739,2]
[311889887,1705489869424,-500.0,0.00022739,2]
[311889888,1705489869434,-500.0,0.00022739,2]
[311889889,1705489869444,-1005.29,0.00022739,2]
[311889890,1705489869453,-581.65,0.00022739,2]
[311889891,1705489869462,-500.0,0.00022739,2]
[311889892,1705489869471,-724.82,0.00022739,2]
[311889893,1705489869480,-500.0,0.00022739,2]
[311889894,1705489869489,-500.0,0.00022739,2]
[311889895,1705489869498,-600.28,0.00022739,2]
[311889896,1705489869507,-500.0,0.00022739,2]
[311889897,1705489869517,-500.0,0.00022739,2]
[311889898,1705489869526,-568.6,0.00022739,2]
[311889899,1705489869535,-500.0,0.00022739,2]
[311889900,1705489869544,-174.21650102,0.00022739,2]
[311889901,1705489869553,-500.0,0.00022739,2]
[311889902,1705489869563,-500.0,0.00022739,2]
[311889903,1705489869572,-514.64,0.00022739,2]
[311889904,1705489869581,-522.85,0.00022739,2]
[311889905,1705489869591,-500.0,0.00022739,2]
[311889906,1705489869600,-561.37,0.00022739,2]
[311889907,1705489869609,-500.0,0.00022739,2]
[311889908,1705489869618,-500.0,0.00022739,2]
[311889909,1705489869628,-569.46,0.00022739,2]
[311889910,1705489869637,-367.31312379,0.00022739,2]
[311889911,1705489869648,-564.18,0.00022739,2]
[311889912,1705489869657,-1178.46,0.00022739,2]
[311889913,1705489869666,-500.0,0.00022739,2]
[311889914,1705489869675,-573.27,0.00022739,2]
[311889915,1705489869684,-500.0,0.00022739,2]
[311889916,1705489869694,-540.7,0.00022739,2]
[311889917,1705489869703,-500.0,0.00022739,2]
[311889918,1705489869713,-500.0,0.00022739,2]
[311889919,1705489869722,-500.0,0.00022739,2]
[311889920,1705489869732,-507.73,0.00022739,2]
[311889921,1705489869741,-500.0,0.00022739,2]
[311889922,1705489869750,-487.41252456,0.00022739,2]
[311889923,1705489869759,-500.0,0.00022739,2]
[311889924,1705489869769,-313.52,0.00022739,2]
[311889925,1705489869778,-500.0,0.00022739,2]
[311889926,1705489869787,-500.0,0.00022739,2]
[311889927,1705489869796,-500.0,0.00022739,2]
[311889928,1705489869805,-554.53,0.00022739,2]
[311889929,1705489869815,-676.5,0.00022739,2]
[311889930,1705489869826,-500.0,0.00022739,2]
[311889931,1705489869835,-569.53,0.00022739,2]
[311889932,1705489869844,-500.0,0.00022739,2]
[311889933,1705489869853,-500.0,0.00022739,2]
[311889934,1705489869862,-773.49,0.00022739,2]
[311889935,1705489869871,-500.0,0.00022739,2]
[311889936,1705489869880,-500.0,0.00022739,2]
[311889937,1705489869889,-500.0,0.00022739,2]
[311889938,1705489869898,-500.0,0.00022739,2]
[311889939,1705489869908,-713.2,0.00022739,2]
[311889940,1705489869917,-924.46,0.00022739,2]
[311889941,1705489869925,-500.0,0.00022739,2]
[311889942,1705489869934,-500.0,0.00022739,2]
[311889943,1705489869943,-1087.8,0.00022739,2]
[311889944,1705489869952,-748.0,0.00022739,2]
[311889945,1705489869962,-590.98,0.00022739,2]
[311889946,1705489869970,-500.0,0.00022739,2]
[311889947,1705489869980,-1140.29,0.00022739,2]
[311889948,1705489869989,-500.0,0.00022739,2]
[311889949,1705489869998,-500.0,0.00022739,2]
[311889950,1705489870007,-771.56,0.00022739,2]
[311889951,1705489870017,-500.0,0.00022739,2]
[311889952,1705489870026,-500.0,0.00022739,2]
[311889953,1705489870035,-500.0,0.00022739,2]
[311889954,1705489870045,-536.78,0.00022739,2]
[311889955,1705489870055,-500.0,0.00022739,2]
[311889956,1705489870064,-500.0,0.00022739,2]
[311889957,1705489870074,-500.0,0.00022739,2]
[311889958,1705489870084,-500.0,0.00022739,2]
[311889959,1705489870093,-841.84,0.00022739,2]
[311889960,1705489870102,-1103.54,0.00022739,2]
[311889961,1705489870111,-771.02,0.00022739,2]
[311889962,1705489870121,-674.53,0.00022739,2]
[311889963,1705489870131,-500.0,0.00022739,2]
[311889964,1705489870140,-500.0,0.00022739,2]
[311889965,1705489870150,-1012.5,0.00022739,2]
[311889966,1705489870159,-708.29,0.00022739,2]
[311889967,1705489870168,-902.18,0.00022739,2]
[311889968,1705489870179,-642.34,0.00022739,2]
[311889969,1705489870189,-500.0,0.00022739,2]
[311889970,1705489870198,-1577.38,0.00022739,2]
[311889971,1705489870207,-500.0,0.00022739,2]
[311889972,1705489870217,-500.0,0.00022739,2]
[311889973,1705489870228,-500.0,0.00022739,2]
[311889974,1705489870239,-500.0,0.00022739,2]
[311889975,1705489870248,-642.91,0.00022739,2]
[311889976,1705489870258,-671.72,0.00022739,2]
[311889977,1705489870270,-559.49,0.00022739,2]
[311889978,1705489870279,-500.0,0.00022739,2]
[311889979,1705489870288,-1101.33,0.00022739,2]
[311889980,1705489870298,-560.17,0.00022739,2]
[311889981,1705489870307,-513.19,0.00022739,2]
[311889982,1705489870317,-646.26,0.00022739,2]
[311889983,1705489870326,-500.0,0.00022739,2]
[311889984,1705489870337,-500.0,0.00022739,2]
[311889985,1705489870346,-334.3630651,0.00022739,2]
[311889986,1705489870358,-500.0,0.00022739,2]
[311889987,1705489870367,-527.13982203,0.00022739,2]
[311889988,1705489870377,-540.47,0.00022739,2]
[311889989,1705489870387,-1309.23,0.00022739,2]
[311889990,1705489870397,-862.21,0.00022739,2]
[311889991,1705489870407,-500.0,0.00022739,2]
[311889992,1705489870416,-500.0,0.00022739,2]
[311889993,1705489870426,-592.26,0.00022739,2]
[311889994,1705489870436,-500.0,0.00022739,2]
[311889995,1705489870446,-548.37,0.00022739,2]
[311889996,1705489870455,-852.28,0.00022739,2]
[311889997,1705489870464,-751.97,0.00022739,2]
[311889998,1705489870475,-629.68,0.00022739,2]
[311889999,1705489870485,-500.0,0.00022739,2]
[311890000,1705489870494,-509.90906228,0.00022739,2]
[311890001,1705489870503,-500.0,0.00022739,2]
[311890002,1705489870512,-809.41,0.00022739,2]
[311890003,1705489870523,-1038.17,0.00022739,2]
[311890004,1705489870532,-631.81207805,0.00022739,2]
[311890005,1705489870541,-865.86,0.00022739,2]
[311890006,1705489870550,-500.0,0.00022739,2]
[311890007,1705489870559,-500.0,0.00022739,2]
[311890008,1705489870569,-824.35,0.00022739,2]
[311890009,1705489870578,-618.32065908,0.00022739,2]
[311890010,1705489870587,-500.0,0.00022739,2]
[311890011,1705489870597,-500.0,0.00022739,2]
[311890012,1705489870606,-583.98,0.00022739,2]
[311890013,1705489870616,-858.82,0.00022739,2]
[311890014,1705489870625,-500.0,0.00022739,2]
[311890015,1705489870635,-678.81,0.00022739,2]
[311890016,1705489870645,-924.3,0.00022739,2]
[311890017,1705489870654,-683.06,0.00022739,2]
[311890018,1705489870663,-500.0,0.00022739,2]
[311890019,1705489870672,-762.3,0.00022739,2]
[311890020,1705489870682,-500.0,0.00022739,2]
[311890021,1705489870692,-500.0,0.00022739,2]
[311890022,1705489870701,-500.0,0.00022739,2]
[311890023,1705489870711,-500.0,0.00022739,2]
[311890024,1705489870721,-869.48,0.00022739,2]
[311890025,1705489870731,-726.09,0.00022739,2]
[311890026,1705489870741,-500.0,0.00022739,2]
[311890027,1705489870751,-500.0,0.00022739,2]
[311890028,1705489870762,-636.58,0.00022739,2]
[311890029,1705489870773,-500.0,0.00022739,2]
[311890030,1705489870782,-888.84,0.00022739,2]
[311890031,1705489870791,-681.16,0.00022739,2]
[311890032,1705489870801,-500.0,0.00022739,2]
[311890033,1705489870811,-986.98,0.00022739,2]
[311890034,1705489870822,-1114.57,0.00022739,2]
[311890035,1705489870832,-500.0,0.00022739,2]
[311890036,1705489870843,-500.0,0.00022739,2]
[311890037,1705489870855,-560.75,0.00022739,2]
[311890038,1705489870865,-510.41526234,0.00022739,2]
[311890039,1705489870875,-818.15,0.00022739,2]
[311890040,1705489870884,-1015.76,0.00022739,2]
[311890041,1705489870896,-924.47,0.00022739,2]
[311890042,1705489870906,-565.32,0.00022739,2]
[311890043,1705489870918,-500.0,0.00022739,2]
[311890044,1705489870929,-587.01232594,0.00022739,2]
[311890045,1705489870940,-778.03,0.00022739,2]
[311890046,1705489870952,-938.79,0.00022739,2]
[311890047,1705489870961,-685.24,0.00022739,2]
[311890048,1705489870971,-1529.03,0.00022739,2]
[311890049,1705489870981,-1126.57,0.00022739,2]
[311890050,1705489870990,-842.83,0.00022739,2]
[311890051,1705489871000,-677.6,0.00022739,2]
[311890052,1705489871009,-500.0,0.00022739,2]
[311890053,1705489871020,-1113.11,0.00022739,2]
[311890054,1705489871030,-824.64,0.00022739,2]
[311890055,1705489871041,-802.8,0.00022739,2]
[311890056,1705489871050,-1539.23,0.00022739,2]
[311890057,1705489871060,-500.0,0.00022739,2]
[311890058,1705489871071,-500.0,0.00022739,2]
[311890059,1705489871082,-1060.88,0.00022739,2]
[311890060,1705489871092,-509.96,0.00022739,2]
[311890061,1705489871101,-620.77,0.00022739,2]
[311890062,1705489871111,-500.0,0.00022739,2]
[311890063,1705489871121,-500.0,0.00022739,2]
[311890064,1705489871132,-1111.84,0.00022739,2]
[311890065,1705489871142,-641.60504894,0.00022739,2]
[311890066,1705489871152,-500.0,0.00022739,2]
[311890067,1705489871162,-797.2,0.00022739,2]
[311890068,1705489871172,-554.16,0.00022739,2]
[311890069,1705489871182,-814.02,0.00022739,2]
[311890070,1705489871192,-653.02,0.00022739,2]
[311890071,1705489871202,-500.0,0.00022739,2]
[311890072,1705489871211,-500.0,0.00022739,2]
[311890073,1705489871220,-576.48994403,0.00022739,2]
[311890074,1705489871230,-728.98,0.00022739,2]
[311890075,1705489871240,-608.56,0.00022739,2]
[311890076,1705489871249,-500.0,0.00022739,2]
[311890077,1705489871258,-500.0,0.00022739,2]
[311890078,1705489871269,-1117.37,0.00022739,2]
[311890079,1705489871279,-500.0,0.00022739,2]
[311890080,1705489871289,-500.0,0.00022739,2]
[311890081,1705489871299,-786.84,0.00022739,2]
[311890082,1705489871308,-500.0,0.00022739,2]
[311890083,1705489871318,-644.84,0.00022739,2]
[311890084,1705489871327,-865.83,0.00022739,2]
[311890085,1705489871341,-500.0,0.00022739,2]
[311890086,1705489871351,-500.0,0.00022739,2]
[311890087,1705489871360,-985.83,0.00022739,2]
[311890088,1705489871370,-645.46,0.00022739,2]
[311890089,1705489871382,-500.0,0.00022739,2]
[311890090,1705489871392,-1000.0,0.00022739,2]
[311890091,1705489871402,-500.0,0.00022739,2]
[311890092,1705489871414,-654.2,0.00022739,2]
[311890093,1705489871423,-671.37,0.00022739,2]
[311890094,1705489871433,-500.0,0.00022739,2]
[311890095,1705489871443,-500.0,0.00022739,2]
[311890096,1705489871452,-500.0,0.00022739,2]
[311890097,1705489871462,-500.0,0.00022739,2]
[311890098,1705489871472,-500.0,0.00022739,2]
[311890099,1705489871482,-677.29,0.00022739,2]
[311890100,1705489871491,-859.76,0.00022739,2]
[311890101,1705489871502,-679.83,0.00022739,2]
[311890102,1705489871522,-500.0,0.00022739,2]
[311890103,1705489871534,-812.38,0.00022739,2]
[311890104,1705489871544,-500.0,0.00022739,2]
[311890105,1705489871554,-529.77,0.00022739,2]
[311890106,1705489871565,-500.0,0.00022739,2]
[311890107,1705489871575,-905.75,0.00022739,2]
[311890108,1705489871585,-597.1,0.00022739,2]
[311890109,1705489871596,-500.0,0.00022739,2]
[311890110,1705489871606,-500.0,0.00022739,2]
[311890111,1705489871616,-976.89,0.00022739,2]
[311890112,1705489871626,-500.0,0.00022739,2]
[311890113,1705489871638,-921.81,0.00022739,2]
[311890114,1705489871649,-801.58,0.00022739,2]
[311890115,1705489871660,-1318.24,0.00022739,2]
[311890116,1705489871670,-500.0,0.00022739,2]
[311890117,1705489871681,-565.85,0.00022739,2]
[311890118,1705489871692,-500.0,0.00022739,2]
[311890119,1705489871702,-500.0,0.00022739,2]
[311890120,1705489871712,-500.0,0.00022739,2]
[311890121,1705489871723,-761.53,0.00022739,2]
[311890122,1705489871733,-500.0,0.00022739,2]
[311890123,1705489871744,-903.46,0.00022739,2]
[311890124,1705489871754,-638.67,0.00022739,2]
[311890125,1705489871766,-500.0,0.00022739,2]
[311890126,1705489871777,-500.0,0.00022739,2]
[311890127,1705489871787,-689.33,0.00022739,2]
[311890128,1705489871798,-500.0,0.00022739,2]
[311890129,1705489871808,-500.0,0.00022739,2]
[311890130,1705489871819,-642.35,0.00022739,2]
[311890131,1705489871829,-970.35,0.00022739,2]
[311890132,1705489871839,-500.0,0.00022739,2]
[311890133,1705489871850,-1001.32,0.00022739,2]
[311890134,1705489871861,-500.0,0.00022739,2]
[311890135,1705489871871,-623.34,0.00022739,2]
[311890136,1705489871882,-1127.94,0.00022739,2]
[311890137,1705489871892,-893.53,0.00022739,2]
[311890138,1705489871903,-500.0,0.00022739,2]
[311890139,1705489871913,-703.72,0.00022739,2]
[311890140,1705489871924,-500.0,0.00022739,2]
[311890141,1705489871934,-500.0,0.00022739,2]
[311890142,1705489871944,-500.0,0.00022739,2]
[311890143,1705489871954,-877.36,0.00022739,2]
[311890144,1705489871965,-500.0,0.00022739,2]
[311890145,1705489871975,-500.0,0.00022739,2]
[311890146,1705489871986,-1113.03,0.00022739,2]
[311890147,1705489871996,-1009.59,0.00022739,2]
[311890148,1705489872007,-671.58,0.00022739,2]
[311890149,1705489872018,-645.55,0.00022739,2]
[311890150,1705489872028,-500.0,0.00022739,2]
[311890151,1705489872038,-519.72,0.00022739,2]
[311890152,1705489872049,-832.3,0.00022739,2]
[311890153,1705489872059,-509.1,0.00022739,2]
[311890154,1705489872069,-500.0,0.00022739,2]
[311890155,1705489872079,-556.75,0.00022739,2]
[311890156,1705489872089,-500.0,0.00022739,2]
[311890157,1705489872100,-919.94,0.00022739,2]
[311890158,1705489872110,-574.45,0.00022739,2]
[311890159,1705489872120,-730.7,0.00022739,2]
[311890160,1705489872132,-1564.11,0.00022739,2]
[311890161,1705489872142,-665.72,0.00022739,2]
[311890162,1705489872153,-753.37,0.00022739,2]
[311890163,1705489872163,-1972.35,0.00022739,2]
[311890164,1705489872174,-819.9,0.00022739,2]
[311890165,1705489872184,-1330.15,0.00022739,2]
[311890166,1705489872195,-500.0,0.00022739,2]
[311890167,1705489872205,-500.0,0.00022739,2]
[311890168,1705489872216,-300.0,0.00022739,2]
[311890169,1705489872227,-1961.2,0.00022739,2]
[311890170,1705489872237,-924.92,0.00022739,2]
[311890171,1705489872249,-500.0,0.00022739,2]
[311890172,1705489872260,-500.0,0.00022739,2]
[311890173,1705489872271,-1342.87,0.00022739,2]
[311890174,1705489872282,-500.0,0.00022739,2]
[311890175,1705489872591,-516.6,0.00022739,2]
[311890176,1705489872603,-1214.22,0.00022739,2]
[311890177,1705489872614,-966.0,0.00022739,2]
[311890178,1705489872623,-872.31,0.00022739,2]
[311890179,1705489872633,-500.0,0.00022739,2]
[311890180,1705489872643,-500.0,0.00022739,2]
[311890181,1705489872653,-748.35,0.00022739,2]
[311890182,1705489872662,-500.0,0.00022739,2]
[311890183,1705489872672,-500.0,0.00022739,2]
[311890184,1705489872682,-937.16,0.00022739,2]
[311890185,1705489872691,-500.0,0.00022739,2]
[311890186,1705489872701,-568.09828797,0.00022739,2]